fUSD/lending_fUSD_20240913
["ID","MTS","AMOUNT","RATE_DAILY","PERIOD"]
[337929463,1726209041595,-678.35,0.00012955,2]
[337929465,1726209041605,-500.0,0.00012955,2]
[337929467,1726209041614,-2316.68,0.00012955,2]
[337929469,1726209041623,-2652.18,0.00012955,2]
[337929470,1726209041632,-3361.2,0.00012955,2]
[337929472,1726209041642,-2218.74,0.00012955,2]
[337929474,1726209041651,-2760.62,0.00012955,2]
[337929476,1726209041660,-850.08,0.00012955,2]
[337929478,1726209041669,-2527.19,0.00012955,2]
[337929480,1726209041678,-2867.36,0.00012955,2]
[337929482,1726209041688,-500.0,0.00012955,2]
[337929484,1726209041698,-957.71,0.00012955,2]
[337929486,1726209041708,-1673.16,0.00012955,2]
[337929488,1726209041717,-3250.68,0.00012955,2]
[337929490,1726209041726,-158.56691584,0.00012964,2]
[337929492,1726209041736,-153.61647769,0.00012964,2]
[337929494,1726209041746,-500.0,0.00012973,2]
[337929496,1726209041755,-617.85421975,0.00012979,2]
[337929498,1726209041764,-783.23074052,0.00012979,2]
[337929500,1726209041773,-238.31196542,0.00012979,2]
[337929502,1726209041787,-150.92,0.0001299,2]
[337929504,1726209041797,-150.92,0.0001299,2]
[337929506,1726209041807,-150.92,0.0001299,2]
[337929508,1726209041816,-150.92,0.0001299,2]
[337929509,1726209041826,-150.92,0.0001299,2]
[337929511,1726209041835,-150.92,0.0001299,2]
[337929513,1726209041844,-150.92,0.0001299,2]
[337929515,1726209041853,-150.92,0.0001299,2]
[337929517,1726209041864,-150.92,0.0001299,2]
[337929519,1726209041873,-150.92,0.0001299,2]
[337929521,1726209041882,-29756.18446412,0.00013,2]
[337929522,1726209041891,-1368.63,0.00013,2]
[337929524,1726209041900,-847762.71382359,0.00013,2]
[337929547,1726209042119,-607.64675005,0.00012953,2]
[337929549,1726209042131,-668.06324995,0.00012953,2]
[337929551,1726209042140,-273.5132662,0.00013,2]
[337929553,1726209042151,-1003.50055156,0.00013,2]
[337929554,1726209042167,-1041.9028995,0.00013,2]
[337929555,1726209042178,-1594.44684523,0.00013,2]
[337929556,1726209042190,-9599.89447516,0.00013,2]
[337929557,1726209042208,-548.10622179,0.00013,2]
[337929558,1726209042219,-699.78547114,0.00013,2]
[337929559,1726209042231,-1424.0,0.00013,2]
[337929560,1726209042242,-276.91061512,0.00013,2]
[337929561,1726209042258,-455.38824084,0.00013,2]
[337929562,1726209042269,-829.19374834,0.00013,2]
[337929563,1726209042280,-290.3425902,0.00013,2]
[337929564,1726209042291,-352.53,0.00013,2]
[337929565,1726209042302,-38845.77453441,0.00013,2]
[337929567,1726209042314,-4564.99427688,0.00013,2]
[337929569,1726209042325,-419.77238971,0.00013,2]
[337929571,1726209042336,-1656.58520388,0.00013,2]
[337929573,1726209042347,-9681.60895399,0.00013,2]
[337929575,1726209042358,-7971.90000001,0.00013,2]
[337929577,1726209042370,-1531.85830089,0.00013,2]
[337929579,1726209042381,-1180.22303273,0.00013,2]
[337929582,1726209042392,-3730.46532221,0.00013,2]
[337929584,1726209042403,-1975.032,0.00013,2]
[337929586,1726209042414,-1819.20996264,0.00013,2]
[337929588,1726209042425,-500.0,0.00013,2]
[337929591,1726209042441,-477396.99140572,0.00013,2]
[337929593,1726209042453,-26941.28639219,0.00013,2]
[337929595,1726209042464,-339709.86079407,0.00013,2]
[337929597,1726209042475,-1216.15843688,0.00013,2]
[337929667,1726209043162,321.47,0.00010659,2]
[337929692,1726209043379,-321.47,0.00012923,2]
[337929694,1726209043389,-1680.63,0.00012952,2]
[337929696,1726209043399,-627.83,0.00012953,2]
[337929698,1726209043409,-4782.05656928,0.00013,2]
[337929700,1726209043420,-940.096497,0.00013,2]
[337929702,1726209043435,-387.60560453,0.00013,2]
[337929704,1726209043447,-398.67149,0.00013,2]
[337929718,1726209043575,-1211.81,0.00012952,2]
[337929725,1726209043632,-2452.1900002,0.00013,2]
[337929727,1726209043643,-463.29586362,0.00013,2]
[337929730,1726209043654,-1919.52883686,0.00013,2]
[337929732,1726209043665,-1242.63834805,0.00013,2]
[337929734,1726209043680,-368590.68572559,0.00013,2]
[337929736,1726209043691,-6246.50973598,0.00013,2]
[337929985,1726209046279,-500.0,0.00012953,2]
[337929987,1726209046288,-3354.16700004,0.00013,2]
[337929997,1726209046378,-276.345,0.00013,2]
[337930001,1726209046405,-1900.0,0.00013,2]
[337930004,1726209046423,-1367.99179144,0.00013,2]
[337930014,1726209046515,-313.06330969,0.00013,2]
[337930020,1726209046561,-580.59172386,0.00013,2]
[337930022,1726209046573,-2835.13175938,0.00013,2]
[337930026,1726209046598,-573.27155235,0.00013,2]
[337930028,1726209046610,-1058.70623904,0.00013,2]
[337930031,1726209046621,-11503.6349508,0.00013,2]
[337930033,1726209046630,-9441.160189,0.0001308,2]
[337932475,1726209288283,250.0,0.00012153,2]
[337932476,1726209293602,961.01,0.00012128,2]
[337932477,1726209293845,961.01,0.00012132,2]
[337932478,1726209294057,961.01,0.00012135,2]
[337932479,1726209294281,961.01,0.00012138,2]
[337932480,1726209294531,961.01,0.00012141,2]
[337932481,1726209295015,961.01,0.00012144,2]
[337932482,1726209295057,961.01,0.00012147,2]
[337932483,1726209295167,961.01,0.00012151,2]
[337932484,1726209295371,961.01,0.00012154,2]
[337932485,1726209295573,961.01,0.00012157,2]
[337932486,1726209295792,961.01,0.0001216,2]
[337932487,1726209296015,961.01,0.00012163,2]
[337932488,1726209330307,289.28,0.00011845,2]
[337932489,1726209332175,200.0,0.00011801,2]
[337932490,1726209427336,23900.0,0.00011699,2]
[337932491,1726209466832,276.55,0.00010959,2]
[337932492,1726209483693,175.26,9.39e-05,2]
[337932493,1726209498235,698.27,0.00011738,2]
[337932494,1726209541527,250.0,0.00011738,2]
[337932495,1726209556612,172.87,0.00011681,2]
[337932496,1726209572439,5170.07,0.00011681,2]
[337932497,1726209586402,604.04,0.00011706,2]
[337932498,1726209602302,324.03,9.795e-05,2]
[337932499,1726209602450,324.03,0.00012059,2]
[337932500,1726209603084,170.13,0.00012157,2]
[337932501,1726209613545,150.0,0.00011543,2]
[337932502,1726209625898,170.13,0.00012157,2]
[337932503,1726209626614,1074.43,0.00011543,2]
[337932504,1726209634930,161.71,0.0001159,2]
[337932505,1726209651415,2000.0,0.00011557,2]
[337932506,1726209740372,884.01,0.00011586,2]
[337932507,1726209815093,384.4,0.00011595,2]
[337932508,1726209815148,384.4,0.00011598,2]
[337932509,1726209815238,384.4,0.00011601,2]
[337932510,1726209815347,384.4,0.00011604,2]
[337932511,1726209815393,384.4,0.00011607,2]
[337932512,1726209815575,384.4,0.0001161,2]
[337932513,1726209815769,384.4,0.00011613,2]
[337932514,1726209815977,384.4,0.00011616,2]
[337932515,1726209816193,384.4,0.00011619,2]
[337932516,1726209816449,384.4,0.00011622,2]
[337932517,1726209816613,384.4,0.00011625,2]
[337932518,1726209816828,384.4,0.00011628,2]
[337932519,1726209817070,384.4,0.00011631,2]
[337932520,1726209817265,384.4,0.00011634,2]
[337932521,1726209817490,384.4,0.00011637,2]
[337932522,1726209817518,250.0,0.00011761,2]
[337932523,1726209817695,384.4,0.0001164,2]
[337932524,1726209817897,384.4,0.00011643,2]
[337932525,1726209818169,384.4,0.00011646,2]
[337932526,1726209818395,384.4,0.00011649,2]
[337932527,1726209818603,384.4,0.00011652,2]
[337932528,1726209843475,5575.04,0.00011869,2]
[337932529,1726209843845,1150.49,0.00011869,2]
[337932530,1726209844097,285.55,0.00011869,2]
[337932531,1726209858032,904.01,0.00011858,2]
[337932532,1726209904366,502.64246371,0.00010216,2]
[337932533,1726209906983,840.0,0.00011879,2]
[337932534,1726209912956,150.0,0.00012132,2]
[337932535,1726210001184,1034.0,0.00012164,2]
[337932536,1726210030946,1054.63761434,0.00012164,2]
[337932537,1726210112944,291.62,9.96e-05,2]
[337932849,1726210166837,187.10368702,0.000135,30]
[337935225,1726210231702,-179.08,0.00012166,2]
[337935227,1726210231712,-150.0,0.00012219,2]
[337935228,1726210231722,-291.62,0.00012224,2]
[337935229,1726210231732,-200.0,0.00012241,2]
[337935231,1726210231741,-500.0,0.000123,2]
[337935232,1726210231751,-205.93,0.00012446,2]
[337935233,1726210231760,-323.5,0.00012446,2]
[337935235,1726210231770,-499.99,0.00012608,2]
[337935236,1726210231779,-421.24760668,0.00012688,2]
[337935237,1726210231789,-300.0,0.00012741,2]
[337935239,1726210231799,-14576.47248075,0.00012742,2]
[337935240,1726210231809,-150.0,0.00012751,2]
[337935242,1726210231819,-20607.21550424,0.00012752,2]
[337935243,1726210231828,-1592.15367387,0.00012752,2]
[337935244,1726210231837,-2326.4415,0.00012752,2]
[337935246,1726210231846,-3180.1108,0.00012752,2]
[337935247,1726210231855,-4964.9738,0.00012752,2]
[337935248,1726210231865,-2938.4696,0.00012752,2]
[337935249,1726210231874,-361.1546,0.00012752,2]
[337935251,1726210231883,-6575.0,0.000128,2]
[337935252,1726210231894,-482.55343431,0.00012818,2]
[337935253,1726210231905,-177.77,0.00012823,2]
[337935255,1726210231915,-324.83310721,0.00012848,2]
[337935256,1726210231926,-1058.16,0.00012851,2]
[337935257,1726210231935,-680.57,0.00012851,2]
[337935259,1726210231944,-500.0,0.00012851,2]
[337935260,1726210231955,-35928.76,0.00012851,2]
[337935261,1726210231966,-2132.67,0.00012851,2]
[337935263,1726210231976,-804.78,0.00012851,2]
[337935264,1726210231986,-5059.77,0.00012851,2]
[337935265,1726210231996,-1247.6,0.00012851,2]
[337935267,1726210232006,-637.81,0.00012851,2]
[337935268,1726210232015,-1040.49,0.00012851,2]
[337935269,1726210232025,-1436.71,0.00012851,2]
[337935271,1726210232036,-500.0,0.00012851,2]
[337935272,1726210232045,-1874.87,0.00012851,2]
[337935273,1726210232055,-3033.76,0.00012851,2]
[337935275,1726210232065,-978.85,0.00012851,2]
[337935276,1726210232075,-1459.79,0.00012851,2]
[337935277,1726210232084,-2126.29,0.00012851,2]
[337935279,1726210232094,-1787.21,0.00012851,2]
[337935280,1726210232104,-2770.49,0.00012851,2]
[337935281,1726210232113,-8023.77,0.00012851,2]
[337935283,1726210232123,-1691.04,0.00012851,2]
[337935284,1726210232133,-2782.85,0.00012851,2]
[337935285,1726210232142,-2344.85,0.00012851,2]
[337935287,1726210232151,-3034.42,0.00012851,2]
[337935288,1726210232161,-2091.4,0.00012851,2]
[337935289,1726210232170,-528.93,0.00012851,2]
[337935291,1726210232180,-1215.6,0.00012851,2]
[337935292,1726210232190,-1547.58,0.00012851,2]
[337935293,1726210232199,-4867.36,0.00012851,2]
[337935295,1726210232209,-5690.42,0.00012851,2]
[337935296,1726210232219,-771.97,0.00012851,2]
[337935297,1726210232229,-2160.65,0.00012851,2]
[337935299,1726210232238,-2032.81,0.00012851,2]
[337935300,1726210232248,-7869.74,0.00012851,2]
[337935301,1726210232259,-29975.64,0.00012851,2]
[337935303,1726210232269,-1347.86,0.00012851,2]
[337935304,1726210232278,-1834.03,0.00012851,2]
[337935305,1726210232288,-7109.28,0.00012851,2]
[337935307,1726210232298,-1788.3,0.00012851,2]
[337935308,1726210232307,-1806.63,0.00012851,2]
[337935309,1726210232316,-6264.05,0.00012851,2]
[337935311,1726210232325,-1542.67,0.00012851,2]
[337935312,1726210232335,-1042.36,0.00012851,2]
[337935313,1726210232345,-1099.93,0.00012851,2]
[337935315,1726210232354,-2655.07,0.00012851,2]
[337935316,1726210232364,-4708.25,0.00012851,2]
[337935317,1726210232373,-2372.4,0.00012851,2]
[337935319,1726210232383,-783.77,0.00012851,2]
[337935320,1726210232394,-6725.33,0.00012851,2]
[337935321,1726210232404,-5623.03,0.00012851,2]
[337935323,1726210232418,-586.52,0.00012851,2]
[337935324,1726210232428,-2909.95,0.00012851,2]
[337935326,1726210232439,-906.93,0.00012851,2]
[337935327,1726210232448,-526.39,0.00012851,2]
[337935328,1726210232458,-500.0,0.00012851,2]
[337935330,1726210232468,-500.0,0.00012851,2]
[337935331,1726210232477,-4737.4,0.00012851,2]
[337935332,1726210232489,-506.41,0.00012851,2]
[337935334,1726210232499,-199.5544492,0.00012851,2]
[337935335,1726210232509,-23745.30144915,0.00012852,2]
[337935401,1726210234625,170.13,0.00012156,2]
[337935502,1726210237557,-170.13,0.00012732,2]
[337935503,1726210237566,-79.87,0.00012732,2]
[337935505,1726210237578,-90.26,0.00012732,2]
[337935506,1726210237587,-170.13,0.00012742,2]
[337935507,1726210237597,-170.13,0.00012742,2]
[337935509,1726210237606,-287.44206054,0.00012851,2]
[337935510,1726210237618,-561.77793946,0.00012851,2]
[337935512,1726210237628,-1014.07,0.00012851,2]
[337935513,1726210237638,-157.60927392,0.00012852,2]
[337935514,1726210237649,-2510.72,0.00012852,2]
[337935516,1726210237661,-887.5,0.00012852,2]
[337935518,1726210237704,-2278.52408922,0.00012852,2]
[337935519,1726210237716,-284.16954793,0.00012852,2]
[337935522,1726210237747,-9124.89413978,0.00012852,2]
[337935523,1726210237757,-94511.0829,0.00012852,2]
[337935524,1726210237766,-937.503,0.00012852,2]
[337935526,1726210237775,-4990.8212,0.00012852,2]
[337935527,1726210237785,-7538.5488,0.00012852,2]
[337935528,1726210237794,-16710.2738,0.00012852,2]
[337935530,1726210237804,-1240.9058,0.00012852,2]
[337935531,1726210237814,-181.7905,0.00012852,2]
[337935532,1726210237823,-500.0,0.00012853,2]
[337935534,1726210237833,-764.4665,0.00012853,2]
[337935535,1726210237843,-500.0,0.000129,2]
[337935536,1726210237852,-151.23,0.00012939,2]
[337935537,1726210237861,-151.23,0.0001294,2]
[337935539,1726210237870,-500.0,0.00012948,2]
[337935540,1726210237879,-500.0,0.00012948,2]
[337935541,1726210237888,-1644.65,0.00012948,2]
[337935543,1726210237898,-500.0,0.00012948,2]
[337935544,1726210237907,-566.611635,0.00012948,2]
[337935545,1726210237916,-500.0,0.00012948,2]
[337935547,1726210237925,-500.0,0.00012948,2]
[337935548,1726210237935,-936.11,0.00012948,2]
[337935549,1726210237944,-500.0,0.00012948,2]
[337935551,1726210237953,-500.0,0.00012948,2]
[337935552,1726210237962,-500.0,0.00012948,2]
[337935553,1726210237971,-1410.91,0.00012948,2]
[337935555,1726210237980,-500.0,0.00012948,2]
[337935556,1726210237990,-596.6,0.00012948,2]
[337935557,1726210237999,-500.0,0.00012948,2]
[337935559,1726210238008,-500.0,0.00012948,2]
[337935560,1726210238018,-500.0,0.00012948,2]
[337935561,1726210238027,-500.0,0.00012948,2]
[337935563,1726210238036,-500.0,0.00012948,2]
[337935564,1726210238045,-500.0,0.00012948,2]
[337935565,1726210238055,-500.0,0.00012948,2]
[337935567,1726210238064,-500.0,0.00012948,2]
[337935568,1726210238073,-997.65,0.00012948,2]
[337935569,1726210238082,-500.0,0.00012948,2]
[337935573,1726210238145,-500.0,0.00012948,2]
[337935574,1726210238154,-734.84,0.00012948,2]
[337935576,1726210238163,-500.0,0.00012948,2]
[337935577,1726210238172,-960.8,0.00012948,2]
[337935578,1726210238181,-500.0,0.00012948,2]
[337935580,1726210238190,-500.0,0.00012948,2]
[337935581,1726210238199,-500.0,0.00012948,2]
[337935582,1726210238207,-1376.85,0.00012949,2]
[337935584,1726210238218,-724.24,0.00012949,2]
[337935585,1726210238227,-880.44,0.00012949,2]
[337935586,1726210238235,-1721.18,0.00012949,2]
[337935588,1726210238245,-500.0,0.00012949,2]
[337935589,1726210238255,-547.76,0.00012949,2]
[337935590,1726210238264,-1645.89,0.00012949,2]
[337935592,1726210238273,-500.0,0.00012949,2]
[337935593,1726210238283,-1337.47,0.00012949,2]
[337935594,1726210238292,-1862.11,0.00012949,2]
[337935596,1726210238301,-500.0,0.00012949,2]
[337935597,1726210238310,-1841.96,0.00012949,2]
[337935599,1726210238320,-1895.48,0.00012949,2]
[337935600,1726210238330,-500.0,0.00012949,2]
[337935601,1726210238339,-910.45,0.00012949,2]
[337935603,1726210238348,-500.0,0.00012949,2]
[337935604,1726210238357,-500.0,0.00012949,2]
[337935605,1726210238367,-500.0,0.00012949,2]
[337935607,1726210238376,-1398.42,0.00012949,2]
[337935608,1726210238386,-543.42,0.00012949,2]
[337935609,1726210238395,-1068.71,0.00012949,2]
[337935611,1726210238405,-500.0,0.00012949,2]
[337935612,1726210238418,-1012.56,0.00012949,2]
[337935613,1726210238427,-2162.4,0.00012949,2]
[337935615,1726210238436,-500.0,0.00012949,2]
[337935616,1726210238446,-1453.0,0.00012949,2]
[337935617,1726210238455,-759.8,0.00012949,2]
[337935619,1726210238465,-1511.79,0.00012949,2]
[337935620,1726210238474,-500.0,0.00012949,2]
[337935622,1726210238483,-500.0,0.00012949,2]
[337935623,1726210238492,-1372.58,0.00012949,2]
[337935624,1726210238502,-2253.41,0.00012949,2]
[337935625,1726210238512,-1650.95,0.00012949,2]
[337935627,1726210238521,-967.77,0.00012949,2]
[337935628,1726210238531,-500.0,0.00012949,2]
[337935629,1726210238540,-1177.63,0.00012949,2]
[337935631,1726210238550,-615.13,0.00012949,2]
[337935632,1726210238559,-1989.31,0.00012949,2]
[337935633,1726210238568,-1028.91,0.00012949,2]
[337935635,1726210238577,-1740.08,0.00012949,2]
[337935636,1726210238586,-500.0,0.00012949,2]
[337935637,1726210238596,-863.13,0.00012949,2]
[337935639,1726210238605,-1948.81,0.00012949,2]
[337935640,1726210238615,-1226.1,0.00012949,2]
[337935641,1726210238625,-998.62,0.00012949,2]
[337935643,1726210238636,-544.73,0.00012949,2]
[337935644,1726210238646,-1094.97,0.00012949,2]
[337935645,1726210238655,-500.0,0.00012949,2]
[337935647,1726210238665,-993.64,0.00012949,2]
[337935648,1726210238674,-881.36,0.00012949,2]
[337935650,1726210238685,-1712.74,0.00012949,2]
[337935651,1726210238695,-795.65,0.00012949,2]
[337935652,1726210238704,-748.28,0.00012949,2]
[337935654,1726210238713,-500.0,0.00012949,2]
[337935655,1726210238722,-500.0,0.00012949,2]
[337935656,1726210238731,-2044.23,0.00012949,2]
[337935658,1726210238742,-663.12,0.00012949,2]
[337935659,1726210238751,-500.0,0.00012949,2]
[337935660,1726210238761,-1782.19,0.00012949,2]
[337935662,1726210238770,-4907.89,0.00012949,2]
[337935663,1726210238779,-729.14,0.00012949,2]
[337935664,1726210238788,-736.59,0.00012949,2]
[337935666,1726210238799,-2453.01,0.00012949,2]
[337935667,1726210238809,-500.0,0.00012949,2]
[337935668,1726210238818,-2282.41,0.00012949,2]
[337935670,1726210238829,-2759.94,0.00012949,2]
[337935671,1726210238839,-1975.26,0.00012949,2]
[337935672,1726210238848,-1604.79,0.00012949,2]
[337935674,1726210238859,-500.0,0.00012949,2]
[337935675,1726210238869,-3130.36,0.00012949,2]
[337935676,1726210238878,-500.0,0.00012949,2]
[337935678,1726210238888,-500.0,0.00012949,2]
[337935679,1726210238897,-510.03,0.00012949,2]
[337935680,1726210238906,-1512.28,0.00012949,2]
[337935682,1726210238916,-699.63,0.00012949,2]
[337935683,1726210238926,-1751.87,0.00012949,2]
[337935685,1726210238938,-957.91,0.00012949,2]
[337935686,1726210238947,-3257.95,0.00012949,2]
[337935687,1726210238956,-3217.86,0.00012949,2]
[337935688,1726210238965,-500.0,0.00012949,2]
[337935690,1726210238975,-2735.9,0.00012949,2]
[337935691,1726210238986,-693.65,0.00012949,2]
[337935693,1726210238996,-1440.25,0.00012949,2]
[337935694,1726210239005,-500.0,0.00012949,2]
[337935695,1726210239015,-500.0,0.00012949,2]
[337935697,1726210239024,-4839.81,0.00012949,2]
[337935698,1726210239034,-4971.08,0.00012949,2]
[337935699,1726210239046,-2576.61,0.00012949,2]
[337935701,1726210239055,-839.24,0.00012949,2]
[337935702,1726210239065,-1921.46,0.00012949,2]
[337935703,1726210239075,-500.0,0.00012949,2]
[337935705,1726210239086,-733.53,0.00012949,2]
[337935706,1726210239096,-2281.46,0.00012949,2]
[337935708,1726210239108,-2052.83,0.00012949,2]
[337935709,1726210239119,-1631.43,0.00012949,2]
[337935710,1726210239128,-1705.5,0.00012949,2]
[337935712,1726210239137,-500.0,0.00012949,2]
[337935713,1726210239148,-500.0,0.00012949,2]
[337935714,1726210239156,-3678.43,0.00012949,2]
[337935716,1726210239166,-1759.02,0.00012949,2]
[337935717,1726210239176,-1651.73,0.00012949,2]
[337935718,1726210239186,-1556.19,0.00012949,2]
[337935720,1726210239195,-2571.0,0.00012949,2]
[337935721,1726210239203,-1770.67,0.00012949,2]
[337935722,1726210239212,-1895.57,0.00012949,2]
[337935724,1726210239223,-500.0,0.00012949,2]
[337935725,1726210239233,-2418.89,0.00012949,2]
[337935726,1726210239243,-4742.76,0.00012949,2]
[337935728,1726210239252,-241.37422192,0.00012949,2]
[337935729,1726210239261,-2281.98,0.00012949,2]
[337935730,1726210239270,-923.0,0.0001295,2]
[337935732,1726210239279,-500.0,0.0001295,2]
[337935733,1726210239288,-662.92,0.0001295,2]
[337935734,1726210239298,-3291.14,0.0001295,2]
[337935736,1726210239307,-646.73,0.0001295,2]
[337935737,1726210239316,-40201.89,0.0001295,2]
[337935738,1726210239326,-1742.06,0.0001295,2]
[337935740,1726210239335,-1669.15,0.0001295,2]
[337935741,1726210239345,-1733.7,0.0001295,2]
[337935742,1726210239355,-1028.33,0.0001295,2]
[337935743,1726210239364,-3043.32,0.0001295,2]
[337935744,1726210239373,-2247.09,0.0001295,2]
[337935745,1726210239382,-690.64166,0.0001295,2]
[337935746,1726210239392,-4075.67,0.0001295,2]
[337935747,1726210239401,-744.35,0.0001295,2]
[337935748,1726210239412,-595.67,0.0001295,2]
[337935749,1726210239423,-7041.33,0.0001295,2]
[337935750,1726210239432,-27141.69,0.0001295,2]
[337935751,1726210239441,-3829.82,0.0001295,2]
[337935752,1726210239450,-8755.15,0.0001295,2]
[337935753,1726210239461,-1910.92,0.0001295,2]
[337935754,1726210239470,-2566.71,0.0001295,2]
[337935755,1726210239480,-762.72,0.0001295,2]
[337935756,1726210239490,-500.0,0.00012951,2]
[337935757,1726210239500,-890.6,0.00012951,2]
[337935759,1726210239510,-500.0,0.00012951,2]
[337935760,1726210239519,-556.69,0.00012951,2]
[337935761,1726210239529,-500.0,0.00012951,2]
[337935763,1726210239538,-500.0,0.00012951,2]
[337935764,1726210239547,-599.04,0.00012951,2]
[337935765,1726210239557,-500.0,0.00012951,2]
[337935767,1726210239566,-1296.24,0.00012951,2]
[337935768,1726210239575,-500.0,0.00012951,2]
[337935769,1726210239584,-500.0,0.00012951,2]
[337935771,1726210239594,-500.0,0.00012951,2]
[337935772,1726210239603,-500.0,0.00012951,2]
[337935773,1726210239612,-500.0,0.00012951,2]
[337935775,1726210239623,-1438.2,0.00012951,2]
[337935776,1726210239632,-500.0,0.00012951,2]
[337935777,1726210239641,-500.0,0.00012951,2]
[337935779,1726210239650,-1224.7,0.00012951,2]
[337935780,1726210239659,-500.0,0.00012951,2]
[337935781,1726210239669,-500.0,0.00012951,2]
[337935783,1726210239677,-426.16647872,0.00012951,2]
[337935784,1726210239686,-1037.91,0.00012951,2]
[337935785,1726210239696,-500.0,0.00012951,2]
[337935787,1726210239705,-500.0,0.00012951,2]
[337935788,1726210239714,-500.0,0.00012951,2]
[337935789,1726210239723,-500.0,0.00012951,2]
[337935791,1726210239732,-500.0,0.00012951,2]
[337935792,1726210239742,-500.0,0.00012951,2]
[337935793,1726210239751,-926.48,0.00012951,2]
[337935795,1726210239760,-500.0,0.00012951,2]
[337935796,1726210239770,-500.0,0.00012951,2]
[337935797,1726210239779,-956.52,0.00012951,2]
[337935799,1726210239789,-569.29,0.00012951,2]
[337935800,1726210239798,-695.38,0.00012951,2]
[337935801,1726210239807,-849.05,0.00012951,2]
[337935803,1726210239816,-960.69,0.00012951,2]
[337935804,1726210239825,-500.0,0.00012951,2]
[337935805,1726210239834,-500.0,0.00012951,2]
[337935807,1726210239843,-2228.05,0.00012951,2]
[337935808,1726210239852,-852.38,0.00012951,2]
[337935809,1726210239862,-3382.98,0.00012951,2]
[337935811,1726210239871,-1913.65,0.00012951,2]
[337935812,1726210239880,-1255.86,0.00012951,2]
[337935813,1726210239889,-1161.32,0.00012951,2]
[337935815,1726210239899,-1697.12,0.00012951,2]
[337935816,1726210239907,-1652.42,0.00012951,2]
[337935818,1726210239916,-1654.67,0.00012951,2]
[337935819,1726210239926,-1645.26,0.00012951,2]
[337935820,1726210239935,-1222.06,0.00012951,2]
[337935822,1726210239943,-1197.59,0.00012951,2]
[337935823,1726210239952,-751.98,0.00012951,2]
[337935824,1726210239961,-1332.16,0.00012951,2]
[337935826,1726210239970,-500.0,0.00012951,2]
[337935827,1726210239979,-500.0,0.00012951,2]
[337935828,1726210239989,-3139.26,0.00012951,2]
[337935830,1726210239998,-539.22,0.00012951,2]
[337935831,1726210240007,-1200.96,0.00012951,2]
[337935832,1726210240016,-2280.8,0.00012951,2]
[337935834,1726210240025,-500.0,0.00012951,2]
[337935835,1726210240034,-500.0,0.00012951,2]
[337935836,1726210240043,-1028.49,0.00012951,2]
[337935838,1726210240052,-1816.35,0.00012951,2]
[337935839,1726210240061,-2740.22,0.00012951,2]
[337935841,1726210240070,-1710.12,0.00012951,2]
[337935842,1726210240079,-1331.66,0.00012951,2]
[337935843,1726210240088,-500.0,0.00012951,2]
[337935845,1726210240098,-500.0,0.00012951,2]
[337935846,1726210240107,-685.49,0.00012951,2]
[337935847,1726210240116,-644.85,0.00012951,2]
[337935849,1726210240125,-1523.78,0.00012951,2]
[337935850,1726210240135,-500.0,0.00012951,2]